[Event "Chessable English Open-ch 2022"]
[Site "Kenilwoth"]
[Date "2022.05.21"]
[Round "6.4"]
[White "Royal, Shreyas"]
[Black "Jackson, James P"]
[Result "0-1"]
[ECO "D30"]
[WhiteElo "2385"]
[BlackElo "2400"]
[Annotator "TA"]
[PlyCount "54"]
[EventDate "2022.05.18"]
[EventType "swiss"]
[EventCountry "ENG"]
[SourceTitle "playchess.com"]
[Source "ChessBase"]
[SourceQuality "1"]
[TimeControl "5400+30"]

{[%evp 9,54,37,16,16,45,-52,-35,-93,-69,-87,-7,-125,-136,-152,-126,-114,-44,-41,-58,-65,-31,-54,-55,-103,-80,-135,-141,-176,-172,-172,-173,-170,-165,-204,-216,-202,-208,-402,-394,-856,-966,-941,-931,-897,-867,-1821,-1840]} 1. d4 {[%emt 0:00:03]} d5 {[%emt 1:31:00]} 2. c4 {[%emt 0:00:07]} e6 {[%emt 0:00:00]} 3. Nf3 {[%emt 0:00:08]} a6 {[%emt 0:00:00]} 4. g3 {[%emt 0:00:29]} dxc4 {[%emt 0:00:00]} 5. Bg2 {[%emt 0:00:18]} Nc6 {[%emt 0:00:00][%cal Bb8c6,Bc6e5,Be5d3][%mdl 32]} 6. e3 {[%emt 0:00:46] [#] D30: Queen's Gambit Declined: Systems without Nc3.} b5 $146 {[%emt 0:00:00]} ({Predecessor:} 6... Rb8 7. Nfd2 Qd7 8. Nxc4 b5 9. Ncd2 Nf6 10. O-O Bb7 11. a4 Be7 12. axb5 axb5 {0-1 (31) Kotsinis,A (2055)-Peng,L (2517) Heraklion 2022}) 7. Ne5 {[%emt 0:09:10]} (7. b3 $14) 7... Nxe5 $15 {[%emt 0:00:00]} 8. Bxa8 {[%emt 0:00:04]} (8. O-O $15) 8... Nd3+ $17 {[%emt 0:00:00]} 9. Kf1 {[%emt 0:00:03]} Nf6 {[%emt 0:00:00]} ({Better is} 9... e5 $17) 10. Bf3 {[%emt 0:01:10]} (10. a4 $1 $11 {remains equal.}) 10... e5 $1 {[%emt 0:00:00]} 11. dxe5 {[%emt 0:14:25]} Bh3+ {[%emt 0:00:00]} (11... Nxe5 12. Qxd8+ Kxd8 13. Bg2 $11) 12. Bg2 {[%emt 0:02:12]} Qa8 {[%emt 0:00:00]} (12... Qd5 $1 $17 {[%cal Rd5g2]} 13. Rg1 Bxg2+ 14. Rxg2 Qxe5) 13. f3 $15 {[%emt 0:04:23]} Bxg2+ {[%emt 0:00:00]} 14. Kxg2 {[%emt 0:00:08]} Ng4 $36 {[%emt 0:00:00][%mdl 2048] Hoping for ...Ngf2. Black has good play.} 15. Qe2 {[%emt 0:06:13]} Bc5 {[%emt 0:00:00]} ({Much weaker is} 15... Ngxe5 16. e4 $11) 16. h3 {[%emt 0:06:20]} (16. Nc3 $15) 16... Ngxe5 {[%emt 0:00:00] 0x0.001de6d14778dp-1022s more active pieces.} 17. e4 {[%emt 0:00:26]} (17. b3 $142) 17... O-O $17 {[%emt 0:00:00][%cal Bh8f8,Bf8d8,Bd8d3,Bd3d2][%mdl 32]} 18. Be3 {[%emt 0:01:40]} Bxe3 {[%emt 0:00:00]} 19. Qxe3 {[%emt 0:00:07]} Nxb2 {[%emt 0:00:00] ...Rd8 is the strong threat. Pair of Knights!} 20. Nc3 {[%emt 0:01:08]} Rd8 {[%emt 0:00:00] And now ...Rd3 would win.} 21. Nd5 {[%emt 0:01:01] [#]} c6 {[%emt 0:00:00]} 22. Ne7+ {[%emt 0:02:00]} Kh8 {[%emt 0:00:00] Threatens to win with ...Rd3.} 23. f4 $2 {[%emt 0:01:17]} (23. Rhb1 Nbd3 24. f4) 23... Rd3 $19 {[%emt 0:00:00]} 24. Qc1 {[%emt 0:00:07]} ({Not} 24. Qe2 Qd8 25. Nd5 {[#]} (25. fxe5 $2 Rd2 $19) 25... c3 $1 26. Nxc3 Rd2 27. fxe5 Qd3 $19) (24. Qf2 Qd8 25. Rhe1 (25. fxe5 $2 Rd2 $19) 25... Qxe7 26. fxe5) 24... Qd8 {[%emt 0:00:00] ( -> ...Rd2+). Black is clearly winning.} 25. Rf1 {[%emt 0:05:37]} Rd2+ {[%emt 0:00:00]} 26. Kh1 {[%emt 0:00:06] [#]} Qd3 $1 {[%emt 0:04:37]} 27. Qe1 {[%emt 0:00:07]} (27. Qxd2 Qxd2) 27... Nf3 {[%emt 0:00:25] Weighted Error Value: White=0.70/Black=0.11 (very precise)} 0-1

[Event "Chessable English Open-ch 2022"]
[Site "Kenilwoth"]
[Date "2022.05.21"]
[Round "6.5"]
[White "Haydon, David L"]
[Black "Pert, Richard G"]
[Result "1/2-1/2"]
[ECO "D73"]
[WhiteElo "2275"]
[BlackElo "2415"]
[Annotator "TA"]
[PlyCount "137"]
[EventDate "2022.05.18"]
[EventType "swiss"]
[EventCountry "ENG"]
[SourceTitle "playchess.com"]
[Source "ChessBase"]
[SourceQuality "1"]
[TimeControl "5400+30"]

{[%evp 14,137,8,0,11,-9,-2,0,12,-22,-35,-36,-34,-30,-47,-85,-84,-91,-91,-91,-91,-91,-91,-91,-91,-91,-91,-91,-91,-91,-94,-95,-95,-89,-102,-83,-62,-70,-75,-70,-12,-14,-14,-19,-13,-26,-10,-10,-10,-14,-10,-15,-16,-17,-8,-8,-13,-14,0,0,0,0,-7,-15,0,0,0,0,0,0,0,0,0,-80,0,0,0,0,0,0,0,0,0,0,0,0,0,0,0,0,0,0,0,0,0,0,0,0,0,0,0,0,0,0,0,0,0,0,0,0,0,0,0,0,0,0,0,0,0,0,0,0,0,0,0,0]} 1. d4 {[%emt 0:00:05]} d5 {[%emt 0:00:09]} 2. g3 {[%emt 0:00:16]} Nf6 {[%emt 0:01:01][%cal Bg8f6,Bf6d7,Bd7b6][%mdl 32]} 3. Bg2 {[%emt 0:00:07]} g6 {[%emt 0:00:27]} 4. c4 {[%emt 0:00:53]} dxc4 {[%emt 0:01:14]} 5. Nf3 {[%emt 0:00:23]} Bg7 {[%emt 0:00:10]} 6. Qa4+ {[%emt 0:00:07]} Nfd7 {[%emt 0:01:34]} 7. Qxc4 {[%emt 0:03:47] The main line 7.Qxc4 scores better than 7.0-0.} O-O {[%emt 0:01:25]} 8. O-O {[%emt 0:01:16]} Nb6 {[%emt 0:00:22] D73: Fianchetto Grünfeld: 5 Nf3 .} 9. Qd3 {[%emt 0:07:44]} Nc6 {[%emt 0:02:12][%cal Rc6d4]} 10. Rd1 {[%emt 0:02:36]} Bg4 {[%emt 0:15:08]} 11. d5 {[%emt 0:09:29]} Bxf3 {[%emt 0:03:10]} 12. Qxf3 {[%emt 0:03:06]} e6 $1 {[%emt 0:01:47]} 13. Nc3 {[%emt 0:01:08]} exd5 {[%emt 0:04:14] [#]} 14. Bf4 $146 {[%emt 0:10:12]} ({Predecessor:} 14. Qf4 Ne7 15. Ne4 Nf5 16. Nc5 Qe7 17. Nxb7 c5 18. Na5 Qxe2 19. Bf3 Qb5 20. Nb3 {1-0 (53) Farago,S (2279)-Szeberenyi,A (2383) Hungary 2007}) 14... Nd4 {[%emt 0:07:12]} 15. Qd3 {[%emt 0:01:18] [#]} c6 $1 {[%emt 0:02:44]} 16. e4 {[%emt 0:02:38]} Ne6 {[%emt 0:05:51] Pair of Knights!} (16... dxe4 {feels hotter.} 17. Nxe4 Nd5 18. Bh6 Bxh6 19. Qxd4 Bg7) 17. exd5 {[%emt 0:00:54]} Nxf4 {[%emt 0:00:10]} 18. gxf4 {[%emt 0:00:36]} Bxc3 {[%emt 0:05:57]} 19. bxc3 {[%emt 0:02:28]} Nxd5 {[%emt 0:01:10]} 20. Bxd5 {[%emt 0:00:09]} cxd5 {[%emt 0:00:07]} 21. Qxd5 {[%emt 0:00:08]} Qc7 {[%emt 0:05:18][%csl LRc3,LRf4]} 22. Qf3 {[%emt 0:02:08]} b6 {[%emt 0:03:52]} 23. Rd4 {[%emt 0:00:06]} Rac8 {[%emt 0:00:51]} 24. c4 {[%emt 0:02:15]} Rfd8 {[%emt 0:04:10]} 25. Rad1 {[%emt 0:00:36]} Rxd4 {[%emt 0:00:21]} 26. Rxd4 $15 {[%emt 0:00:08][%mdl 4096] Endgame KQR-KQR} Rd8 {[%emt 0:00:08]} (26... Qe7 $15) 27. Qe4 {[%emt 0:01:23]} Rxd4 {[%emt 0:00:44]} 28. Qxd4 $11 {[%emt 0:00:06] KQ-KQ} Qc8 {[%emt 0:01:58]} 29. Qe4 {[%emt 0:11:15]} h6 {[%emt 0:05:35]} 30. Kg2 {[%emt 0:04:18]} Qg4+ {[%emt 0:01:09]} 31. Kf1 {[%emt 0:00:15]} Kh7 {[%emt 0:00:29]} 32. Qe5 {[%emt 0:02:06]} Qd7 {[%emt 0:04:55]} 33. Qe4 {[%emt 0:03:15] Against Qd3+} Qh3+ {[%emt 0:06:34]} 34. Kg1 {[%emt 0:01:25]} Qg4+ {[%emt 0:00:11]} 35. Kf1 {[%emt 0:00:03]} h5 {[%emt 0:00:55]} 36. f3 {[%emt 0:01:59]} Qd7 {[%emt 0:01:25]} 37. Kg2 {[%emt 0:00:03]} Qd2+ {[%emt 0:05:56]} 38. Kg3 {[%emt 0:00:53]} Qxa2 {[%emt 0:00:20] ...Qa1 is the strong threat.} 39. Qd5 $1 {[%emt 0:01:46]} Qa1 {[%emt 0:00:26] Hoping for ...Kg7.} 40. Qxf7+ {[%emt 0:00:18]} Qg7 {[%emt 0:00:05]} 41. Qd5 {[%emt 0:00:35]} Qe7 {[%emt 0:00:34]} 42. Qc6 {[%emt 0:01:34]} Kg7 {[%emt 0:01:01]} 43. Kh3 {[%emt 0:03:13] [#]} (43. h4 $11 {remains equal.}) 43... Qf6 {[%emt 0:00:54]} (43... Qf7 $1 $17 44. Kg2 Qxf4 45. Qd7+ Qf7 46. Qd4+ Qf6 47. Qd7+ Qf7 48. Qd4+ Kh7) 44. Qc7+ {[%emt 0:02:11] The position is equal.} Qf7 {[%emt 0:00:39]} 45. Qe5+ {[%emt 0:00:03]} Kh7 {[%emt 0:00:40] aiming for ...Qf5+.} 46. Kg3 {[%emt 0:00:48]} Qd7 {[%emt 0:01:52]} 47. c5 {[%emt 0:05:09]} bxc5 {[%emt 0:00:34]} 48. Qxc5 {[%emt 0:00:32]} Kg8 {[%emt 0:00:59]} 49. Qc4+ {[%emt 0:02:46]} Qf7 {[%emt 0:00:10]} 50. Qc8+ {[%emt 0:00:28]} Kh7 {[%emt 0:00:29][%cal Oh5h4]} 51. Qa6 {[%emt 0:00:44]} Qe7 {[%emt 0:00:14]} 52. Kg2 {[%emt 0:00:51]} Kg7 {[%emt 0:00:32]} 53. Kg3 {[%emt 0:00:59]} Kf7 {[%emt 0:01:21]} 54. Qc4+ {[%emt 0:00:19]} Kg7 {[%emt 0:00:31]} 55. Qa6 {[%emt 0:00:18]} Qc7 {[%emt 0:00:16]} 56. Qa1+ {[%emt 0:01:18]} Kh7 {[%emt 0:00:12]} 57. Qa6 {[%emt 0:03:11]} Qf7 {[%emt 0:04:12]} 58. h4 {[%emt 0:01:26]} Qe7 {[%emt 0:00:25]} 59. Kg2 {[%emt 0:00:32]} Qd7 {[%emt 0:01:26]} 60. Kg3 {[%emt 0:00:27]} Qc7 {[%emt 0:00:05]} 61. Kg2 {[%emt 0:00:09]} Kh6 {[%emt 0:00:54]} 62. Qf6 {[%emt 0:03:09]} Kh7 {[%emt 0:00:21]} 63. Qa6 {[%emt 0:00:09]} Qf7 {[%emt 0:00:30]} 64. Kg3 {[%emt 0:00:18]} Qe7 {[%emt 0:00:06]} 65. Kg2 {[%emt 0:00:33]} Kg7 {[%emt 0:00:38]} 66. Kg3 {[%emt 0:00:12]} Kh7 {[%emt 0:00:34]} 67. Kg2 {[%emt 0:00:05]} Qc7 {[%emt 0:00:07]} 68. Kg3 {[%emt 0:00:12]} Qe7 {[%emt 0:00:42]} 69. Kg2 {[%emt 0:00:07] Weighted Error Value: White=0.07 (flawless) /Black=0.06 (flawless)} 1/2-1/2

[Event "Chessable English Open-ch 2022"]
[Site "Kenilwoth"]
[Date "2022.05.21"]
[Round "6.6"]
[White "Wells, Peter K"]
[Black "Wadsworth, Matthew J"]
[Result "1-0"]
[ECO "A11"]
[WhiteElo "2374"]
[BlackElo "2432"]
[Annotator "TA"]
[PlyCount "101"]
[EventDate "2022.05.18"]
[EventType "swiss"]
[EventCountry "ENG"]
[SourceTitle "playchess.com"]
[Source "ChessBase"]
[SourceQuality "1"]
[TimeControl "5400+30"]

{[%evp 11,101,12,20,26,12,9,34,33,38,20,20,33,20,27,29,30,35,34,25,21,44,11,4,14,24,22,29,28,18,0,0,2,60,63,120,117,107,111,113,116,118,112,171,178,181,170,189,178,218,175,170,157,235,235,222,213,235,230,233,228,387,375,355,320,756,697,1000,966,928,909,1131,966,1523,1465,1688,1540,12837,6663,12843,1048,12840,12839,12837,12838,29988,12842,29996,29997,29997,447,29998,29999]} 1. Nf3 {[%emt 0:02:17]} d5 {[%emt 0:00:07]} 2. g3 {[%emt 0:00:34]} Nf6 {[%emt 0:00:07]} 3. Bg2 {[%emt 0:00:18]} c6 {[%emt 0:00:08]} 4. O-O {[%emt 0:00:22]} Bf5 {[%emt 0:00:11]} 5. c4 {[%emt 0:00:40]} e6 {[%emt 0:00:09]} 6. Qb3 {[%emt 0:03:48]} Qb6 {[%emt 0:00:55]} 7. d3 {[%emt 0:01:48] A11: English Opening: 1...c6.} Qxb3 {[%emt 0:04:41]} 8. axb3 {[%emt 0:00:08]} Nbd7 {[%emt 0:00:05]} 9. cxd5 {[%emt 0:04:23] White is slightly better.} exd5 {[%emt 0:00:08]} 10. Bd2 {[%emt 0:00:33]} Nc5 {[%emt 0:05:44]} 11. Nd4 {[%emt 0:05:25] [#] b4 is the strong threat.} Bd7 {[%emt 0:00:08]} 12. b4 {[%emt 0:03:55]} Ne6 {[%emt 0:05:07]} 13. Nb3 {[%emt 0:02:11]} Be7 {[%emt 0:00:47][%cal Bf8e7,Be7d8,Bd8b6][%mdl 32] [#]} 14. e4 $146 {[%emt 0:14:07]} ({Predecessor:} 14. Bc3 O-O 15. N1d2 a6 16. Nf3 Rad8 17. Rfc1 Ne8 18. Nfd4 Nxd4 19. Nxd4 Nd6 20. f4 {½-½ (57) Giri,A (2798)-Tomashevsky,E (2728) Wijk aan Zee 2016}) 14... O-O {[%emt 0:00:35]} 15. f4 {[%emt 0:20:05]} Bd8 {[%emt 0:07:57]} 16. Nc3 {[%emt 0:13:34]} Bb6+ {[%emt 0:04:39]} 17. Kh1 {[%emt 0:00:08]} dxe4 {[%emt 0:00:28]} 18. dxe4 {[%emt 0:00:08]} Nd4 {[%emt 0:01:18]} 19. Nxd4 {[%emt 0:05:56]} Bxd4 {[%emt 0:01:44]} 20. h3 {[%emt 0:01:34]} Be6 {[%emt 0:03:26]} 21. e5 {[%emt 0:00:29]} Nd5 {[%emt 0:01:43]} (21... Nd7 $11) 22. f5 $14 {[%emt 0:01:32]} Bc8 {[%emt 0:00:06] White leaves nothing to chance now.} (22... Bd7 $14) 23. Nxd5 $16 {[%emt 0:00:50]} cxd5 {[%emt 0:01:31]} 24. Bc3 {[%emt 0:00:08]} ({But not} 24. Bxd5 $6 Rd8 25. Be4 Bxb2 $11) 24... Bxc3 {[%emt 0:09:27]} 25. bxc3 {[%emt 0:00:02]} Re8 {[%emt 0:00:25]} 26. Rae1 {[%emt 0:00:19] White is more active.} ({Don't play} 26. Bxd5 Rxe5 27. Rfe1 Rxe1+ 28. Rxe1 Bxf5 $14) 26... b5 {[%emt 0:04:38]} (26... Bd7 $16) 27. Bxd5 $18 {[%emt 0:03:56]} Rb8 {[%emt 0:00:01]} 28. Kg1 {[%emt 0:05:29]} Rb6 {[%emt 0:11:28]} 29. g4 {[%emt 0:01:03]} Kf8 {[%emt 0:01:28]} 30. Bb3 {[%emt 0:06:44]} Re7 {[%emt 0:03:46]} 31. Rf3 {[%emt 0:01:29]} g6 {[%emt 0:01:27]} (31... Ra6 $16 32. Rd3 Ra3) 32. f6 {[%emt 0:01:33]} Re8 {[%emt 0:01:18]} 33. Kf2 {[%emt 0:00:37]} h6 {[%emt 0:04:50]} 34. Rd3 {[%emt 0:00:40]} Rc6 {[%emt 0:00:06]} 35. Ree3 {[%emt 0:00:33]} g5 $2 {[%emt 0:02:10]} (35... Be6) 36. Rd6 {[%emt 0:00:24]} Rc7 {[%emt 0:05:12]} 37. Kg3 {[%emt 0:00:07]} Bb7 $2 {[%emt 0:07:01]} (37... Bd7 38. Bd5 Kg8) 38. h4 {[%emt 0:00:25]} gxh4+ {[%emt 0:02:01]} 39. Kxh4 {[%emt 0:00:09]} Bc8 {[%emt 0:01:09]} 40. Kh5 {[%emt 0:00:49]} a5 {[%emt 0:02:11]} 41. bxa5 {[%emt 0:00:45]} Ra7 {[%emt 0:00:01]} 42. a6 {[%emt 0:00:26]} Bxa6 {[%emt 0:01:00]} 43. Kxh6 {[%emt 0:00:39]} Bc8 {[%emt 0:00:30]} 44. Kg5 {[%emt 0:00:50]} Ra1 {[%emt 0:00:06]} 45. Rd4 {[%emt 0:00:35]} (45. e6 $142 Bxe6 46. Bxe6) 45... Rg1 {[%emt 0:00:53]} 46. Rh3 {[%emt 0:00:29][%cal Rh3h8]} Kg8 {[%emt 0:00:02] Prevents Rh8+.} 47. e6 {[%emt 0:00:20]} fxe6 {[%emt 0:00:44]} 48. Kg6 {[%emt 0:00:08] Intending f7+ and mate.} Rf8 {[%emt 0:00:16]} 49. f7+ {[%emt 0:00:11]} Rxf7 {[%emt 0:00:05]} 50. Rd8+ {[%emt 0:00:03]} Rf8 {[%emt 0:00:07] [#]} 51. Rh8+ $3 {[%emt 0:00:35][%mdl 512] Weighted Error Value: White=0.23 (precise) /Black=0.72} 1-0

[Event "Chessable English Open-ch 2022"]
[Site "Kenilwoth"]
[Date "2022.05.21"]
[Round "6.7"]
[White "Ashton, Adam G"]
[Black "Hepworth, Peter"]
[Result "1-0"]
[ECO "C13"]
[WhiteElo "2366"]
[BlackElo "1843"]
[Annotator "TA"]
[PlyCount "59"]
[EventDate "2022.05.18"]
[EventType "swiss"]
[EventCountry "ENG"]
[SourceTitle "playchess.com"]
[Source "ChessBase"]
[SourceQuality "1"]
[TimeControl "5400+30"]

{[%evp 12,58,26,22,29,10,40,29,55,20,45,32,69,57,64,57,68,66,94,24,70,87,97,75,97,95,397,395,372,78,528,545,590,580,550,494,532,532,536,525,507,479,475,422,655,486,29997,29998,29999]} 1. e4 {[%emt 0:05:35]} e6 {[%emt 0:00:05]} 2. d4 {[%emt 0:00:03]} d5 {[%emt 0:00:02]} 3. Nc3 {[%emt 0:00:04]} Nf6 {[%emt 0:00:04]} 4. Bg5 {[%emt 0:00:57]} dxe4 {[%emt 0:00:07]} 5. Nxe4 {[%emt 0:00:38]} Nbd7 {[%emt 0:00:05]} 6. Nf3 {[%emt 0:06:12]} h6 {[%emt 0:00:05]} 7. Bxf6 {[%emt 0:03:32]} Nxf6 {[%emt 0:00:16] C13: French: Classical System: 4 Bg5 Be7, Alekhine-Chatard Attack.} 8. Bd3 {[%emt 0:01:06]} Be7 {[%emt 0:02:04]} 9. c3 {[%emt 0:10:28] [#]} a6 $146 {[%emt 0:01:46] White has an edge.} ({Predecessor:} 9... O-O 10. Nxf6+ Bxf6 11. Qe2 Qd6 12. h4 Rd8 13. O-O-O Bd7 14. Kb1 Ba4 15. Rd2 c5 16. dxc5 Qxc5 {½-½ (67) Yu,Y (2675)-Goloshchapov,A (2586) Dubai 2014}) 10. Ne5 {[%emt 0:02:45]} O-O {[%emt 0:01:24]} 11. Qf3 {[%emt 0:04:59]} (11. Nxf6+ {feels hotter.} Bxf6 12. Qf3 Qd5 13. Be4) 11... Nxe4 {[%emt 0:08:50]} 12. Qxe4 {[%emt 0:00:43][%csl Gd3][%cal Re4h7] [#]} f5 {[%emt 0:00:07]} 13. Qe2 $36 {[%emt 0:00:39][%mdl 2048] White has some pressure. White is more active.} Bd6 {[%emt 0:00:27]} 14. O-O-O {[%emt 0:04:10]} Bxe5 {[%emt 0:01:26]} 15. dxe5 {[%emt 0:08:41]} (15. Qxe5 $16 b5 16. Bc2) 15... b5 {[%emt 0:04:03]} (15... Qg5+ $11 16. Qe3 Qxe3+ 17. fxe3 b5) 16. f4 $14 {[%emt 0:03:57][%cal Od3e4]} Qe7 {[%emt 0:00:17]} 17. g4 {[%emt 0:05:31]} Bb7 {[%emt 0:25:50]} 18. Rhg1 {[%emt 0:01:10]} Kh7 $2 {[%emt 0:01:52][%mdl 8192]} (18... Rad8 $16 {is more resistant.}) 19. gxf5 $18 {[%emt 0:05:44]} exf5 {[%emt 0:00:10]} 20. Rg3 {[%emt 0:06:24]} (20. Qg4 $1 $18) 20... Qh4 $2 {[%emt 0:10:53][%mdl 8192]} (20... g6 $16) 21. Rg4 {[%emt 0:00:54]} Qh3 {[%emt 0:04:29] [#] ...Bf3 is the strong threat.} 22. Rdg1 $1 {[%emt 0:01:23]} Kh8 {[%emt 0:00:16]} 23. Rxg7 {[%emt 0:02:45] Strongly threatening e6.} Qh4 {[%emt 0:06:01]} 24. Qe3 {[%emt 0:06:16] e6 would kill now.} Rg8 {[%emt 0:10:26]} 25. Rxg8+ {[%emt 0:01:42]} Rxg8 {[%emt 0:00:07]} 26. Rxg8+ {[%emt 0:00:06]} Kxg8 {[%emt 0:00:04]} 27. e6 {[%emt 0:01:38] Black must now prevent e7.} Kf8 {[%emt 0:03:05]} (27... Bc6 $142 28. Bxf5 (28. Qe5 Qxh2 29. e7 Qg1+ 30. Kd2 Qg2+ 31. Be2 Kf7 $16) 28... Be8) 28. Bxf5 {[%emt 0:01:02] Hoping for Qe5.} Ke7 {[%emt 0:01:03]} (28... Qf6 $18 29. Bg4 Bc6) 29. Qc5+ {[%emt 0:00:33]} Kf6 {[%emt 0:00:24]} 30. Qf8# {[%emt 0:00:14] Weighted Error Value: White=0.36/Black=1.03} 1-0

[Event "Chessable English Open-ch 2022"]
[Site "Kenilwoth"]
[Date "2022.05.21"]
[Round "6.8"]
[White "Shearsby, Jude"]
[Black "Hackner, Oskar A"]
[Result "0-1"]
[ECO "C14"]
[WhiteElo "1849"]
[BlackElo "2177"]
[Annotator "TA"]
[PlyCount "68"]
[EventDate "2022.05.18"]
[EventType "swiss"]
[EventCountry "ENG"]
[SourceTitle "playchess.com"]
[Source "ChessBase"]
[SourceQuality "1"]
[TimeControl "5400+30"]

{[%evp 10,68,14,23,41,-12,58,51,123,100,106,-58,-60,-54,-60,-72,-65,-114,-109,-148,-151,-145,-142,-146,-146,-159,-134,-145,-143,-148,-142,-156,-152,-155,-176,-147,-164,-247,-226,-364,-196,-188,-196,-370,-382,-378,-356,-431,-439,-517,-477,-461,-452,-526,-504,-890,-883,-955,-943,-933,-634]} 1. e4 {[%emt 0:03:13][%cal Be2e4,Be4e5][%mdl 32]} e6 {[%emt 0:00:06]} 2. d4 {[%emt 0:00:04]} d5 {[%emt 0:00:05]} 3. Nc3 {[%emt 0:00:04]} Nf6 {[%emt 0:00:07]} 4. Bg5 {[%emt 0:00:04]} Be7 {[%emt 0:00:06]} 5. e5 {[%emt 0:00:04]} Nfd7 {[%emt 0:00:05]} 6. h4 {[%emt 0:00:03]} Nc6 {[%emt 0:00:05] C14: French: Classical System: 4 Bg5 Be7 main line.} 7. Nh3 {[%emt 0:00:04]} (7. Qd2 $14) 7... h6 $11 {[%emt 0:03:53]} 8. Be3 {[%emt 0:00:06]} Ndxe5 {[%emt 0:15:33]} 9. dxe5 $16 {[%emt 0:02:08]} d4 {[%emt 0:00:14] [#]} 10. Bxd4 $146 {[%emt 0:08:59]} ({Predecessor:} 10. Qg4 dxe3 11. Rd1 Bd7 12. Qxg7 Rf8 13. Bd3 Bb4 14. Nf4 exf2+ 15. Kxf2 Qe7 16. Ne4 {0-1 (43) Sideris,T (1978)-Korniotis Stavroulakis,F (2095) Athens 2016}) 10... Qxd4 $15 {[%emt 0:04:56]} ({Don't play} 10... Nxd4 11. Qd3 $11) 11. Qxd4 {[%emt 0:00:40]} Nxd4 {[%emt 0:00:06]} 12. O-O-O {[%emt 0:00:21]} Nc6 {[%emt 0:00:27]} 13. Bb5 {[%emt 0:10:48] Black keeps a firm grip on the game.} (13. f4 $15 {is superior.}) 13... Bd7 $17 {[%emt 0:06:12]} 14. Rhe1 {[%emt 0:16:37]} Bxh4 {[%emt 0:00:47]} 15. g3 {[%emt 0:04:28]} Be7 {[%emt 0:00:17]} 16. f4 {[%emt 0:00:27]} O-O-O {[%emt 0:02:24]} 17. Nf2 {[%emt 0:01:41]} g5 {[%emt 0:03:15]} 18. Nfe4 {[%emt 0:01:16]} gxf4 {[%emt 0:00:24]} 19. gxf4 {[%emt 0:00:08]} h5 {[%emt 0:00:39][%cal Bh6h5,Bh5h4][%mdl 32]} 20. Rh1 {[%emt 0:00:44]} h4 {[%emt 0:00:59]} 21. Rh3 {[%emt 0:00:50]} Rdg8 {[%emt 0:00:26]} 22. Be2 {[%emt 0:00:45]} Nb4 {[%emt 0:02:52][%cal Ob4d5]} 23. Rh2 {[%emt 0:03:19]} (23. Bf3 {keeps fighting.}) 23... Bc6 {[%emt 0:01:29]} 24. a3 {[%emt 0:01:58] [#]} (24. Bd3 {was called for.}) 24... Nd5 {[%emt 0:00:30]} (24... Na2+ $142 $1 {[%mdl 512]} 25. Kd2 Nxc3 26. Nxc3 Rg3) 25. Nxd5 $19 {[%emt 0:01:20]} Bxd5 {[%emt 0:00:31]} 26. Nc3 {[%emt 0:00:37]} (26. Bf3) 26... Bg2 {[%emt 0:03:54]} 27. Bd3 {[%emt 0:01:56]} Bc5 {[%emt 0:00:39] aiming for ...Be3+.} 28. Re1 {[%emt 0:00:31] Prevents Be3+.} h3 {[%emt 0:01:18] White must now prevent ...Bf2. Black is clearly winning.} 29. Nd1 {[%emt 0:00:22] Against Bf2} Rg3 {[%emt 0:03:57]} 30. b4 {[%emt 0:00:12]} Bb6 {[%emt 0:01:25]} 31. a4 {[%emt 0:00:05]} Bc6 {[%emt 0:01:04] And now ...Bg1 would win.} 32. Be4 {[%emt 0:00:25]} (32. Bf1 $142) 32... Rg1 {[%emt 0:00:51]} 33. Ree2 {[%emt 0:00:40]} Bxe4 {[%emt 0:01:51]} 34. Rxe4 {[%emt 0:00:06]} Rd8 {[%emt 0:00:09] Weighted Error Value: White=0.53/Black=0.12 (very precise)} 0-1